fUSD/lending_fUSD_20250620
["ID","MTS","AMOUNT","RATE_DAILY","PERIOD"]
[366688796,1750413046332,-490.0,0.00025609,4]
[366688797,1750413046342,-490.0,0.00025609,4]
[366688798,1750413046352,-490.0,0.00025609,4]
[366688799,1750413046362,-490.0,0.00025609,4]
[366688800,1750413046373,-490.0,0.00025609,4]
[366688801,1750413046383,-490.0,0.00025609,4]
[366688802,1750413046394,-490.0,0.00025609,4]
[366688803,1750413046404,-490.0,0.00025609,4]
[366688804,1750413046414,-490.0,0.00025609,4]
[366688805,1750413046423,-490.0,0.00025609,4]
[366688806,1750413046433,-490.0,0.00025609,4]
[366688807,1750413046443,-828.92,0.00025609,4]
[366688808,1750413046453,-490.0,0.00025609,4]
[366688810,1750413046463,-811.39,0.00025609,4]
[366688812,1750413046473,-462.95100006,0.00025609,4]
[366688815,1750413046483,-1055.44,0.00025609,4]
[366688816,1750413046493,-490.0,0.00025609,4]
[366688817,1750413046504,-506.15,0.00025609,4]
[366688818,1750413046514,-490.0,0.00025609,4]
[366688819,1750413046524,-762.29,0.00025609,4]
[366688820,1750413046535,-531.93,0.00025609,4]
[366688821,1750413046545,-490.25,0.00025609,4]
[366688822,1750413046555,-492.75383527,0.00025609,4]
[366688824,1750413046697,-697.68,0.00025609,4]
[366688825,1750413046707,-490.0,0.00025609,4]
[366688826,1750413046717,-490.0,0.00025609,4]
[366688827,1750413046726,-490.0,0.00025609,4]
[366688828,1750413046737,-490.0,0.00025609,4]
[366688829,1750413046747,-490.0,0.00025609,4]
[366688830,1750413046757,-490.0,0.00025609,4]
[366688831,1750413046768,-490.0,0.00025609,4]
[366688832,1750413046778,-490.0,0.00025609,4]
[366688833,1750413046788,-490.0,0.00025609,4]
[366688834,1750413046798,-603.42,0.00025609,4]
[366688835,1750413046807,-490.0,0.00025609,4]
[366688836,1750413046817,-490.0,0.00025609,4]
[366688837,1750413046826,-624.77,0.00025609,4]
[366688838,1750413046835,-490.0,0.00025609,4]
[366688839,1750413046845,-523.57,0.00025609,4]
[366688840,1750413046854,-490.0,0.00025609,4]
[366688841,1750413046864,-490.0,0.00025609,4]
[366688842,1750413046873,-490.0,0.00025609,4]
[366688843,1750413046883,-490.0,0.00025609,4]
[366688844,1750413046893,-490.0,0.00025609,4]
[366688845,1750413046902,-490.0,0.00025609,4]
[366688846,1750413046912,-490.0,0.00025609,4]
[366688847,1750413046922,-490.0,0.00025609,4]
[366688848,1750413046932,-490.0,0.00025609,4]
[366688849,1750413046943,-490.0,0.00025609,4]
[366688850,1750413046952,-748.83,0.00025609,4]
[366688851,1750413046962,-490.0,0.00025609,4]
[366688852,1750413046972,-490.0,0.00025609,4]
[366688853,1750413046982,-490.0,0.00025609,4]
[366688854,1750413046992,-596.75,0.00025609,4]
[366688855,1750413047002,-490.0,0.00025609,4]
[366688856,1750413047012,-490.0,0.00025609,4]
[366688857,1750413047021,-490.0,0.00025609,4]
[366688858,1750413047031,-490.0,0.00025609,4]
[366688859,1750413047040,-490.0,0.00025609,4]
[366688860,1750413047051,-490.0,0.00025609,4]
[366688861,1750413047060,-490.0,0.00025609,4]
[366688862,1750413047070,-492.72618607,0.00025609,4]
[366688863,1750413047079,-490.0,0.00025609,4]
[366688864,1750413047089,-490.0,0.00025609,4]
[366688866,1750413047098,-490.0,0.00025609,4]
[366688868,1750413047108,-490.0,0.00025609,4]
[366688870,1750413047118,-490.0,0.00025609,4]
[366688872,1750413047127,-490.0,0.00025609,4]
[366688873,1750413047137,-490.0,0.00025609,4]
[366688874,1750413047149,-490.0,0.00025609,4]
[366688875,1750413047159,-490.0,0.00025609,4]
[366688876,1750413047168,-490.0,0.00025609,4]
[366688877,1750413047178,-560.67,0.00025609,4]
[366688878,1750413047188,-490.0,0.00025609,4]
[366688879,1750413047197,-490.0,0.00025609,4]
[366688880,1750413047206,-490.0,0.00025609,4]
[366688881,1750413047215,-490.0,0.00025609,4]
[366688882,1750413047225,-490.0,0.00025609,4]
[366688883,1750413047234,-490.0,0.00025609,4]
[366688884,1750413047244,-490.0,0.00025609,4]
[366688885,1750413047254,-490.0,0.00025609,4]
[366688886,1750413047263,-490.0,0.00025609,4]
[366688887,1750413047273,-490.0,0.00025609,4]
[366688888,1750413047283,-490.0,0.00025609,4]
[366688889,1750413047292,-490.0,0.00025609,4]
[366688890,1750413047301,-490.0,0.00025609,4]
[366688891,1750413047311,-490.0,0.00025609,4]
[366688892,1750413047320,-651.04,0.00025609,4]
[366688893,1750413047330,-490.0,0.00025609,4]
[366688894,1750413047339,-576.23,0.00025609,4]
[366688895,1750413047349,-490.0,0.00025609,4]
[366688896,1750413047358,-490.0,0.00025609,4]
[366688897,1750413047368,-490.0,0.00025609,4]
[366688898,1750413047378,-490.0,0.00025609,4]
[366688899,1750413047387,-626.89938219,0.00025609,4]
[366688900,1750413047397,-857.24,0.00025609,4]
[366688901,1750413047407,-490.0,0.00025609,4]
[366688902,1750413047417,-490.0,0.00025609,4]
[366688903,1750413047425,-507.96,0.00025609,4]
[366688904,1750413047435,-490.0,0.00025609,4]
[366688905,1750413047445,-490.0,0.00025609,4]
[366688906,1750413047455,-670.37,0.00025609,4]
[366688907,1750413047465,-490.0,0.00025609,4]
[366688908,1750413047475,-490.0,0.00025609,4]
[366688909,1750413047484,-490.0,0.00025609,4]
[366688910,1750413047494,-490.0,0.00025609,4]
[366688911,1750413047503,-490.0,0.00025609,4]
[366688912,1750413047514,-490.0,0.00025609,4]
[366688913,1750413047524,-490.0,0.00025609,4]
[366688914,1750413047533,-490.0,0.00025609,4]
[366688915,1750413047543,-490.0,0.00025609,4]
[366688916,1750413047554,-490.0,0.00025609,4]
[366688917,1750413047565,-490.0,0.00025609,4]
[366688918,1750413047576,-490.0,0.00025609,4]
[366688919,1750413047586,-490.0,0.00025609,4]
[366688920,1750413047596,-490.0,0.00025609,4]
[366688921,1750413047607,-490.0,0.00025609,4]
[366688922,1750413047619,-490.0,0.00025609,4]
[366688923,1750413047628,-490.0,0.00025609,4]
[366688924,1750413047638,-490.0,0.00025609,4]
[366688925,1750413047647,-490.0,0.00025609,4]
[366688926,1750413047658,-490.0,0.00025609,4]
[366688927,1750413047668,-635.14004917,0.00025609,4]
[366688928,1750413047678,-490.0,0.00025609,4]
[366688929,1750413047687,-490.0,0.00025609,4]
[366688930,1750413047697,-1125.9,0.00025609,4]
[366688931,1750413047708,-490.0,0.00025609,4]
[366688932,1750413047717,-490.0,0.00025609,4]
[366688933,1750413047726,-490.0,0.00025609,4]
[366688934,1750413047737,-234.60925945,0.00025609,4]
[366688935,1750413047747,-791.36,0.00025609,4]
[366688936,1750413047757,-653.38,0.00025609,4]
[366688937,1750413047767,-490.0,0.00025609,4]
[366688938,1750413047778,-490.0,0.00025609,4]
[366688939,1750413047787,-490.0,0.00025609,4]
[366688940,1750413047798,-490.0,0.00025609,4]
[366688941,1750413047807,-490.0,0.00025609,4]
[366688942,1750413047816,-490.0,0.00025609,4]
[366688943,1750413047826,-490.0,0.00025609,4]
[366688944,1750413047836,-872.44,0.00025609,4]
[366688945,1750413047846,-1592.66,0.00025609,4]
[366688946,1750413047856,-490.0,0.00025609,4]
[366688947,1750413047865,-610.3,0.00025609,4]
[366688948,1750413047875,-811.02,0.00025609,4]
[366688949,1750413047884,-490.0,0.00025609,4]
[366688950,1750413047894,-490.0,0.00025609,4]
[366688951,1750413047904,-490.0,0.00025609,4]
[366688952,1750413047914,-490.0,0.00025609,4]
[366688953,1750413047924,-1176.16,0.00025609,4]
[366688954,1750413047933,-490.0,0.00025609,4]
[366688955,1750413047942,-490.0,0.00025609,4]
[366688956,1750413047951,-490.0,0.00025609,4]
[366688957,1750413047962,-490.0,0.00025609,4]
[366688958,1750413047971,-1812.71,0.00025609,4]
[366688959,1750413047981,-490.0,0.00025609,4]
[366688960,1750413047990,-490.0,0.00025609,4]
[366688961,1750413048000,-692.77,0.00025609,4]
[366688962,1750413048010,-490.0,0.00025609,4]
[366688963,1750413048020,-490.0,0.00025609,4]
[366688964,1750413048030,-490.0,0.00025609,4]
[366688965,1750413048040,-490.0,0.00025609,4]
[366688966,1750413048049,-490.0,0.00025609,4]
[366688967,1750413048059,-490.0,0.00025609,4]
[366688968,1750413048068,-490.0,0.00025609,4]
[366688969,1750413048077,-490.0,0.00025609,4]
[366688970,1750413048088,-490.0,0.00025609,4]
[366688971,1750413048098,-490.0,0.00025609,4]
[366688972,1750413048107,-811.26,0.00025609,4]
[366688973,1750413048117,-490.0,0.00025609,4]
[366688974,1750413048127,-490.0,0.00025609,4]
[366688975,1750413048137,-638.19419422,0.00025609,4]
[366688976,1750413048146,-490.0,0.00025609,4]
[366688977,1750413048156,-672.17,0.00025609,4]
[366688978,1750413048165,-490.0,0.00025609,4]
[366688979,1750413048175,-589.36,0.00025609,4]
[366688980,1750413048184,-801.31,0.00025609,4]
[366688981,1750413048194,-490.0,0.00025609,4]
[366688982,1750413048204,-1790.74,0.00025609,4]
[366688983,1750413048213,-1247.1,0.00025609,4]
[366688984,1750413048223,-490.0,0.00025609,4]
[366688985,1750413048232,-761.43,0.00025609,4]
[366688986,1750413048243,-490.0,0.00025609,4]
[366688987,1750413048253,-929.97,0.00025609,4]
[366688988,1750413048263,-2415.44,0.00025609,4]
[366688989,1750413048273,-490.0,0.00025609,4]
[366688990,1750413048282,-490.0,0.00025609,4]
[366688991,1750413048292,-588.0,0.00025609,4]
[366688992,1750413048302,-490.0,0.00025609,4]
[366688993,1750413048311,-490.0,0.00025609,4]
[366688994,1750413048320,-1105.71,0.00025609,4]
[366688995,1750413048330,-491.04552303,0.00025609,2]
[366688996,1750413048339,-1367.82,0.00025609,4]
[366688997,1750413048349,-490.0,0.00025609,4]
[366688998,1750413048360,-541.09,0.00025609,4]
[366688999,1750413048370,-490.0,0.00025609,4]
[366689000,1750413048380,-490.0,0.00025609,4]
[366689001,1750413048389,-490.0,0.00025609,4]
[366689002,1750413048399,-490.0,0.00025609,4]
[366689003,1750413048409,-490.0,0.00025609,4]
[366689004,1750413048418,-499.52568987,0.00025609,4]
[366689005,1750413048428,-599.07,0.00025609,4]
[366689006,1750413048438,-490.0,0.00025609,4]
[366689007,1750413048448,-951.92,0.00025609,4]
[366689008,1750413048459,-1083.11,0.00025609,4]
[366689009,1750413048468,-490.0,0.00025609,4]
[366689010,1750413048478,-490.0,0.00025609,4]
[366689011,1750413048488,-490.0,0.00025609,4]
[366689012,1750413048498,-490.0,0.00025609,4]
[366689013,1750413048508,-490.0,0.00025609,4]
[366689014,1750413048518,-490.0,0.00025609,4]
[366689015,1750413048528,-490.0,0.00025609,4]
[366689016,1750413048539,-566.33627174,0.00025609,4]
[366689017,1750413048548,-490.0,0.00025609,4]
[366689018,1750413048559,-1217.99,0.00025609,4]
[366689019,1750413048569,-1693.3,0.00025609,4]
[366689020,1750413048579,-490.0,0.00025609,4]
[366689021,1750413048588,-490.0,0.00025609,4]
[366689022,1750413048599,-490.0,0.00025609,4]
[366689023,1750413048612,-490.0,0.00025609,4]
[366689024,1750413048624,-490.0,0.00025609,4]
[366689025,1750413048634,-490.0,0.00025609,4]
[366689026,1750413048644,-999.12,0.00025609,4]
[366689027,1750413048654,-490.0,0.00025609,4]
[366689028,1750413048665,-568.72,0.00025609,4]
[366689029,1750413048675,-505.13,0.00025609,4]
[366689030,1750413048686,-490.0,0.00025609,4]
[366689031,1750413048696,-490.0,0.00025609,4]
[366689032,1750413048705,-668.23,0.00025609,4]
[366689033,1750413048715,-490.0,0.00025609,4]
[366689034,1750413048725,-490.0,0.00025609,4]
[366689035,1750413048735,-490.0,0.00025609,4]
[366689036,1750413048744,-750.44,0.00025609,4]
[366689037,1750413048754,-490.0,0.00025609,4]
[366689038,1750413048763,-490.0,0.00025609,4]
[366689039,1750413048773,-490.0,0.00025609,4]
[366689040,1750413048782,-1230.49,0.00025609,4]
[366689041,1750413048792,-490.0,0.00025609,4]
[366689042,1750413048803,-490.0,0.00025609,4]
[366689043,1750413048812,-702.54,0.00025609,4]
[366689044,1750413048822,-490.0,0.00025609,4]
[366689045,1750413048832,-1739.35,0.00025609,4]
[366689046,1750413048843,-490.0,0.00025609,4]
[366689047,1750413048852,-490.0,0.00025609,4]
[366689048,1750413048862,-490.0,0.00025609,4]
[366689049,1750413048873,-851.74,0.00025609,4]
[366689050,1750413048883,-560.42,0.00025609,4]
[366689051,1750413048893,-1634.07,0.00025609,4]
[366689052,1750413048903,-490.0,0.00025609,4]
[366689053,1750413048913,-490.0,0.00025609,4]
[366689054,1750413048923,-490.0,0.00025609,4]
[366689055,1750413048933,-609.75,0.00025609,4]
[366689056,1750413048942,-490.0,0.00025609,4]
[366689057,1750413048952,-546.39,0.00025609,4]
[366689058,1750413048962,-1736.09,0.00025609,4]
[366689059,1750413048972,-490.0,0.00025609,4]
[366689060,1750413048982,-568.46,0.00025609,4]
[366689061,1750413048992,-490.0,0.00025609,4]
[366689062,1750413049002,-490.0,0.00025609,4]
[366689063,1750413049011,-490.0,0.00025609,4]
[366689064,1750413049021,-490.0,0.00025609,4]
[366689065,1750413049031,-490.0,0.00025609,4]
[366689066,1750413049040,-490.0,0.00025609,4]
[366689067,1750413049049,-1333.97,0.00025609,4]
[366689068,1750413049059,-894.58,0.00025609,4]
[366689069,1750413049068,-490.0,0.00025609,4]
[366689070,1750413049078,-490.0,0.00025609,4]
[366689071,1750413049088,-532.41,0.00025609,4]
[366689072,1750413049097,-490.0,0.00025609,4]
[366689073,1750413049107,-1610.53,0.00025609,4]
[366689074,1750413049116,-387.56319625,0.00025609,4]
[366689075,1750413049126,-602.2,0.00025609,4]
[366689076,1750413049136,-490.0,0.00025609,4]
[366689077,1750413049146,-490.0,0.00025609,4]
[366689078,1750413049156,-490.0,0.00025609,4]
[366689079,1750413049165,-1532.1,0.00025609,4]
[366689080,1750413049175,-490.0,0.00025609,4]
[366689081,1750413049184,-967.7,0.00025609,4]
[366689082,1750413049194,-490.0,0.00025609,4]
[366689083,1750413049204,-1266.53,0.00025609,4]
[366689084,1750413049214,-490.0,0.00025609,4]
[366689085,1750413049223,-490.0,0.00025609,4]
[366689086,1750413049233,-490.0,0.00025609,4]
[366689087,1750413049243,-490.0,0.00025609,4]
[366689088,1750413049253,-490.0,0.00025609,4]
[366689089,1750413049263,-1141.49,0.00025609,4]
[366689090,1750413049274,-2317.95,0.00025609,4]
[366689091,1750413049284,-490.0,0.00025609,4]
[366689092,1750413049293,-490.0,0.00025609,4]
[366689093,1750413049303,-493.24094041,0.00025609,4]
[366689094,1750413049314,-490.0,0.00025609,4]
[366689095,1750413049324,-872.95,0.00025609,4]
[366689096,1750413049333,-490.0,0.00025609,4]
[366689097,1750413049342,-490.0,0.00025609,4]
[366689098,1750413049352,-490.0,0.00025609,4]
[366689099,1750413049362,-738.73,0.00025609,4]
[366689100,1750413049371,-490.0,0.00025609,4]
[366689101,1750413049381,-603.44,0.00025609,4]
[366689102,1750413049391,-490.0,0.00025609,4]
[366689103,1750413049401,-490.0,0.00025609,4]
[366689104,1750413049410,-490.0,0.00025609,4]
[366689105,1750413049420,-490.0,0.00025609,4]
[366689106,1750413049431,-490.0,0.00025609,4]
[366689107,1750413049441,-490.0,0.00025609,4]
[366689108,1750413049450,-1198.32,0.00025609,4]
[366689109,1750413049459,-490.0,0.00025609,4]
[366689110,1750413049469,-490.0,0.00025609,4]
[366689111,1750413049479,-490.0,0.00025609,2]
[366689112,1750413049490,-490.0,0.00025609,4]
[366689113,1750413049499,-490.0,0.00025609,4]
[366689114,1750413049509,-572.45,0.00025609,4]
[366689115,1750413049520,-1639.69,0.00025609,4]
[366689116,1750413049530,-1165.64,0.00025609,4]
[366689117,1750413049539,-490.0,0.00025609,4]
[366689118,1750413049549,-490.0,0.00025609,4]
[366689119,1750413049559,-490.0,0.00025609,4]
[366689120,1750413049570,-490.0,0.00025609,4]
[366689121,1750413049580,-969.87,0.00025609,4]
[366689122,1750413049591,-1647.32,0.00025609,4]
[366689123,1750413049601,-490.0,0.00025609,4]
[366689124,1750413049615,-490.0,0.00025609,4]
[366689125,1750413049625,-625.1443426,0.00025609,4]
[366689126,1750413049635,-667.5,0.00025609,4]
[366689127,1750413049645,-2255.47,0.00025609,4]
[366689128,1750413049655,-490.0,0.00025609,4]
[366689129,1750413049664,-1225.04,0.00025609,4]
[366689130,1750413049675,-490.0,0.00025609,4]
[366689131,1750413049684,-490.0,0.00025609,4]
[366689132,1750413049694,-490.0,0.00025609,4]
[366689133,1750413049704,-490.0,0.00025609,4]
[366689134,1750413049714,-551.08,0.00025609,4]
[366689135,1750413049723,-798.69,0.00025609,4]
[366689136,1750413049733,-522.67,0.00025609,4]
[366689137,1750413049742,-490.0,0.00025609,4]
[366689138,1750413049752,-679.23,0.00025609,4]
[366689139,1750413049761,-490.0,0.00025609,4]
[366689140,1750413049771,-797.47,0.00025609,4]
[366689141,1750413049780,-267.6731355,0.00025609,4]
[366689142,1750413049790,-490.0,0.00025609,4]
[366689143,1750413049800,-490.0,0.00025609,4]
[366689144,1750413049810,-490.0,0.00025609,4]
[366689145,1750413049821,-490.0,0.00025609,4]
[366689146,1750413049830,-572.56,0.00025609,4]
[366689147,1750413049839,-490.0,0.00025609,4]
[366689148,1750413049849,-990.79,0.00025609,4]
[366689149,1750413049859,-490.0,0.00025609,4]
[366689150,1750413049868,-490.0,0.00025609,4]
[366689151,1750413049878,-490.0,0.00025609,4]
[366689152,1750413049887,-1802.47,0.00025609,4]
[366689153,1750413049897,-490.0,0.00025609,4]
[366689154,1750413049906,-490.0,0.00025609,4]
[366689155,1750413049915,-843.43,0.00025609,4]
[366689156,1750413049925,-490.0,0.00025609,4]
[366689157,1750413049934,-490.0,0.00025609,4]
[366689158,1750413049943,-490.0,0.00025609,4]
[366689159,1750413049952,-490.0,0.00025609,4]
[366689160,1750413049962,-490.0,0.00025609,4]
[366689161,1750413049971,-1187.42,0.00025609,4]
[366689162,1750413049981,-612.26,0.00025609,4]
[366689163,1750413049991,-1594.61,0.00025609,4]
[366689164,1750413050000,-2807.77,0.00025609,4]
[366689165,1750413050010,-546.49,0.00025609,4]
[366689166,1750413050019,-490.0,0.00025609,4]
[366689167,1750413050029,-490.0,0.00025609,4]
[366689168,1750413050038,-490.0,0.00025609,4]
[366689169,1750413050047,-781.89,0.00025609,4]
[366689170,1750413050057,-2297.42,0.00025609,4]
[366689171,1750413050067,-490.0,0.00025609,4]
[366689172,1750413050076,-578.67,0.00025609,4]
[366689173,1750413050085,-3432.48,0.00025609,4]
[366689174,1750413050094,-3123.95,0.00025609,4]
[366689175,1750413050104,-490.0,0.00025609,4]
[366689176,1750413050114,-925.76,0.00025609,4]
[366689177,1750413050123,-1602.64,0.00025609,4]
[366689178,1750413050134,-884.99,0.00025609,4]
[366689179,1750413050143,-490.0,0.00025609,4]
[366689180,1750413050154,-490.0,0.00025609,4]
[366689181,1750413050164,-1264.81,0.00025609,4]
[366689182,1750413050174,-490.0,0.00025609,4]
[366689183,1750413050184,-490.0,0.00025609,4]
[366689184,1750413050194,-490.0,0.00025609,4]
[366689185,1750413050203,-808.35,0.00025609,4]
[366689186,1750413050214,-630.43,0.00025609,4]
[366689187,1750413050223,-490.0,0.00025609,4]
[366689188,1750413050234,-490.0,0.00025609,4]
[366689189,1750413050243,-490.0,0.00025609,4]
[366689190,1750413050252,-490.0,0.00025609,4]
[366689191,1750413050262,-960.94,0.00025609,4]
[366689192,1750413050272,-490.0,0.00025609,4]
[366689193,1750413050282,-1089.85,0.00025609,4]
[366689194,1750413050291,-8148.58,0.00025609,4]
[366689195,1750413050301,-1379.72,0.00025609,4]
[366689196,1750413050311,-664.5,0.00025609,4]
[366689197,1750413050321,-490.0,0.00025609,4]
[366689198,1750413050331,-490.0,0.00025609,4]
[366689199,1750413050341,-1517.81,0.00025609,4]
[366689200,1750413050351,-150.0,0.00025609,10]
[366689201,1750413050361,-1153.21,0.00025609,4]
[366689202,1750413050371,-608.75,0.00025609,4]
[366689203,1750413050381,-8697.19,0.00025609,4]
[366689204,1750413050392,-490.0,0.00025609,4]
[366689205,1750413050402,-490.0,0.00025609,4]
[366689206,1750413050411,-490.0,0.00025609,4]
[366689207,1750413050421,-490.0,0.00025609,4]
[366689208,1750413050430,-2135.83,0.00025609,4]
[366689209,1750413050440,-3504.12,0.00025609,4]
[366689210,1750413050450,-490.0,0.00025609,4]
[366689211,1750413050460,-490.0,0.00025609,4]
[366689212,1750413050470,-490.0,0.00025609,4]
[366689213,1750413050479,-4119.3,0.00025609,4]
[366689214,1750413050489,-490.0,0.00025609,4]
[366689215,1750413050500,-490.0,0.00025609,4]
[366689216,1750413050509,-490.0,0.00025609,4]
[366689217,1750413050519,-826.47,0.00025609,4]
[366689218,1750413050529,-490.0,0.00025609,4]
[366689219,1750413050538,-490.0,0.00025609,4]
[366689220,1750413050547,-5428.04,0.00025609,4]
[366689221,1750413050557,-490.0,0.00025609,4]
[366689222,1750413050567,-490.0,0.00025609,4]
[366689223,1750413050577,-490.0,0.00025609,4]
[366689224,1750413050587,-490.0,0.00025609,4]
[366689225,1750413050597,-1283.35,0.00025609,4]
[366689226,1750413050610,-1604.94,0.00025609,4]
[366689227,1750413050620,-707.26,0.00025609,4]
[366689228,1750413050630,-450.4570431,0.00025609,4]
[366689229,1750413050639,-490.0,0.00025609,4]
[366689230,1750413050649,-300.0,0.00025609,4]
[366689231,1750413050659,-1040.51,0.00025609,4]
[366689232,1750413050670,-490.0,0.00025609,4]
[366689233,1750413050680,-2509.31,0.00025609,4]
[366689234,1750413050691,-490.0,0.00025609,4]
[366689235,1750413050701,-610.84,0.00025609,4]
[366689236,1750413050711,-490.0,0.00025609,4]
[366689237,1750413050721,-2323.49,0.00025609,4]
[366689238,1750413050730,-500.0,0.00025609,4]
[366689239,1750413050740,-490.0,0.00025609,4]
[366689240,1750413050749,-492.52219194,0.00025609,4]
[366689241,1750413050759,-982.17,0.00025609,4]
[366689242,1750413050769,-490.0,0.00025609,4]
[366689243,1750413050780,-581.18329025,0.00025609,4]
[366689244,1750413050791,-504.96,0.00025609,4]
[366689245,1750413050801,-10120.59,0.00025609,4]
[366689246,1750413050811,-490.0,0.00025609,4]
[366689247,1750413050821,-2532.5,0.00025609,4]
[366689248,1750413050831,-490.0,0.00025609,4]
[366689249,1750413050841,-490.0,0.00025609,4]
[366689250,1750413050851,-490.0,0.00025609,4]
[366689251,1750413050861,-2888.16,0.00025609,4]
[366689252,1750413050871,-3613.05,0.00025609,4]
[366689253,1750413051076,-490.0,0.00025609,4]
[366689254,1750413051087,-2679.24,0.00025609,4]
[366689255,1750413051097,-490.0,0.00025609,4]
[366689256,1750413051107,-490.0,0.00025609,4]
[366689257,1750413051117,-490.0,0.00025609,4]
[366689258,1750413051127,-715.93,0.00025609,4]
[366689259,1750413051137,-527.03,0.00025609,4]
[366689260,1750413051147,-1753.61,0.00025609,4]
[366689261,1750413051157,-16656.13,0.00025609,4]
[366689262,1750413051168,-490.0,0.00025609,4]
[366689263,1750413051177,-531.03,0.00025609,4]
[366689264,1750413051187,-490.0,0.00025609,4]
[366689265,1750413051198,-659.37,0.00025609,4]
[366689266,1750413051208,-1463.07,0.00025609,4]
[366689267,1750413051218,-563.33,0.00025609,4]
[366689268,1750413051228,-5881.55,0.00025609,4]
[366689269,1750413051238,-391.81696377,0.00025609,4]
[366689270,1750413051250,-490.0,0.00025609,4]
[366689271,1750413051260,-1249.92,0.00025609,4]
[366689272,1750413051270,-490.0,0.00025609,4]
[366689273,1750413051287,-490.0,0.00025609,4]
[366689274,1750413051298,-490.0,0.00025609,4]
[366689275,1750413051308,-374.434222,0.00025609,7]
[366689276,1750413051319,-1334.66,0.00025609,4]
[366689277,1750413051329,-507.64,0.00025609,4]
[366689278,1750413051339,-690.9,0.00025609,4]
[366689279,1750413051349,-490.0,0.00025609,4]
[366689280,1750413051360,-521.5,0.00025609,4]
[366689281,1750413051370,-374.434222,0.00025609,7]
[366689282,1750413051381,-548.51,0.00025609,4]
[366689283,1750413051392,-5288.92,0.00025609,4]
[366689284,1750413051402,-490.0,0.00025609,4]
[366689285,1750413051412,-490.0,0.00025609,4]
[366689286,1750413051423,-2173.34,0.00025609,4]
[366689287,1750413051433,-871.17,0.00025609,4]
[366689288,1750413051444,-490.0,0.00025609,4]
[366689289,1750413051455,-490.0,0.00025609,4]
[366689290,1750413051465,-490.0,0.00025609,4]
[366689291,1750413051475,-151.0,0.00025609,7]
[366689292,1750413051485,-490.0,0.00025609,4]
[366689293,1750413051496,-1558.0,0.00025609,4]
[366689294,1750413051507,-12412.95,0.00025609,4]
[366689295,1750413051518,-490.0,0.00025609,4]
[366689296,1750413051528,-490.0,0.00025609,4]
[366689297,1750413051539,-490.0,0.00025609,4]
[366689298,1750413051549,-1141.36,0.00025609,4]
[366689299,1750413051560,-622.23,0.00025609,4]
[366689300,1750413051570,-500.0,0.00025609,4]
[366689301,1750413051581,-510.53,0.00025609,4]
[366689302,1750413051591,-490.0,0.00025609,4]
[366689303,1750413051602,-151.0,0.00025609,7]
[366689304,1750413051616,-1676.65,0.00025609,4]